Cogmind - Beta 17.1 @@@ ROGUE MODE // 2026.08.31 @ 14:22:12 Player: Petvaria Result: Destroyed by S-27 Virus with Autogun Performance ------------- Evolutions (0) 0 Regions Visited (2) 400 Robots Destroyed (40) 200 Value Destroyed (792) 792 Prototype IDs (2) 40 Alien Tech Used (0) 0 Bonus (7689) 7689 TOTAL SCORE: 9121 Bonus ------- Follower Combat Kills 55 Prayed to X0-1V1 5000 Major X0-1V1 Interference 3000 Friendly Fire -366 Cogmind --------- Core Integrity 0/200 Matter 254/700 Energy 1102/1300 System Corruption 24% Temperature Warm (159) Movement Rolling (130) Ox2 Location -10/Subcaves Parts ------- > --- POWER (1) -------- (None) > --- PROPULSION (2) --- Subdweller Monowheel > --- UTILITY (2) ------ High-capacity Storage Unit Makeshift Light Armor Plating (fused) > --- WEAPON (3) ------- Assault Rifle Minigun > --- INVENTORY (20) --- Subdweller Power Source Subdweller Monowheel Huge Storage Unit Improved Terrain Scanner Seismic Detector X0-1V1's Piety Tracker Improved EM Shotgun Makeshift Laser Subdweller Beam Cannon Assault Rifle Light Assault Rifle Light Assault Rifle Battle Rifle Battle Rifle Subdweller Machine Gun Subdweller Machine Gun Battle Cannon Subdweller Shrapnel Launcher Peak State ------------ > --- POWER ------------ Ion Engine > --- PROPULSION ------- Light Treads Light Treads > --- UTILITY ---------- High-capacity Storage Unit X0-1V1's Piety Tracker > --- WEAPON ----------- Subdweller Beam Cannon Battle Cannon > --- INVENTORY -------- Light Ion Engine Subdweller Power Source Wheel Compact Wheel Huge Storage Unit Improved Terrain Scanner Seismic Detector Makeshift Light Armor Plating Heavy EM Pulse Gun Heavy EM Pulse Gun Subdweller Laser Makeshift Laser Assault Rifle Assault Rifle Light Assault Rifle Battle Rifle Subdweller Machine Gun Minigun Battle Cannon Subdweller Shrapnel Launcher [Rating: 24] Favorites ----------- Power Ion Engine Engine Ion Engine Propulsion Light Treads Treads Light Treads Wheel Subdweller Monowheel Utility High-capacity Storage Unit Device Seismic Detector Storage High-capacity Storage Unit Protection Makeshift Light Armor Plating Weapon Assault Rifle Energy Gun Medium Laser Energy Cannon Subdweller Beam Cannon Ballistic Gun Assault Rifle Ballistic Cannon Battle Cannon Launcher Subdweller Shrapnel Launcher Impact Weapon Heavy Hammer Build | -11 -10 -10 ------- Run | Yrd Mat Sub Slots Evolved . | . . . Power . | . . . Propulsion . | . . . Utility . | . . . Weapon . | . . . Parts Attached 32 | 7 3 22 Power 4 | 1 . 3 Engine 4 | 1 . 3 Core . | . . . Reactor . | . . . Propulsion 9 | 2 . 7 Treads 4 | 2 . 2 Leg . | . . . Wheel 5 | . . 5 Hover . | . . . Flight . | . . . Utility 7 | 2 2 3 Device 3 | 1 . 2 Storage 2 | 1 1 . Processor . | . . . Hackware . | . . . Protection 2 | . 1 1 Artifact . | . . . Weapon 12 | 2 1 9 Energy Gun 2 | . 1 1 Energy Cannon 1 | . . 1 Ballistic Gun 7 | 2 . 5 Ballistic Cannon 1 | . . 1 Launcher 1 | . . 1 Special Weapon . | . . . Impact Weapon . | . . . Slashing Weapon . | . . . Piercing Weapon . | . . . Special Melee Weapon . | . . . Unidentified Prototypes 1 | . . 1 Parts Lost 13 | . . 13 Power 3 | . . 3 Propulsion 6 | . . 6 Utility 2 | . . 2 Weapon 2 | . . 2 Highest Loss Streak 5 | . . 5 To Critical Strikes . | . . . Average Backups 13 | 3 7 16 Power 1 | . 1 1 Propulsion 2 | 1 2 2 Utility 2 | . 1 3 Weapon 7 | . 1 9 Tool/Special . | . . . Unused Backups 14 | . . 14 Power . | . . . Propulsion 1 | . . 1 Utility 4 | . . 4 Weapon 9 | . . 9 Tool/Special . | . . . Average Slot Usage (%) 96 | . 100 94 Engine 12 | . 14 11 Treads 22 | . 28 19 Wheel 5 | . . 7 Device 9 | . 10 8 Storage 13 | . 14 13 Protection 3 | . 3 3 Energy Gun 5 | . 13 2 Energy Cannon 5 | . . 7 Ballistic Gun 12 | . 14 11 Ballistic Cannon 4 | . . 6 Peak Build Rating 24 | 7 9 24 Average Rating 11 | 5 7 13 On Entrance 5 | . 7 9 Avg Prop Armor Cover (%) 6 | . . 6 Naked Turns . | . . . Heaviest Build 67 | 14 52 67 Greatest Support 40 | 40 40 40 Greatest Overweight (x) 6 | . 1 6 Average Overweight (x) 1 | . . 2 Largest Inventory Capacity 20 | 8 20 20 Average Capacity 18 | 7 17 20 Most Carried 20 | 5 14 20 Average Carried 13 | 3 7 16 Final Capacity 20 | 8 20 20 Final Carried 18 | 5 14 18 Class Distribution -------------------- 89% | Mutant 10% | Scavenger-Mutant Dominant Class ---------------- Mutant | -10/Materials Mutant | -10/Subcaves Resources | -11 -10 -10 ----------- Run | Yrd Mat Sub Matter Collected 1206 | 260 132 814 Remotely . | . . . Salvage Created 1011 | 47 392 572 Parts 77 | 6 33 38 Haulers Intercepted 1 | . 1 . Recyclers Shooed . | . . . Parts Field Recycled . | . . . Retrieved Matter . | . . . Parts Self-Destructed 29 | . . 29 Prevented . | . . . Parts Restored . | . . . Kills | -11 -10 -10 ------- Run | Yrd Mat Sub Combat Hostiles Destroyed 33 | . 12 21 Guns 18 | . 12 6 Cannons 5 | . . 5 AOE 9 | . . 9 Classes Destroyed 9 | 1 6 2 Worker 1 | . 1 . Tunneler 2 | 2 . . Hauler 1 | . 1 . Recycler 1 | . 1 . Mechanic 1 | . 1 . Swarmer 17 | . 9 8 Grunt 9 | . 3 6 Heavy 1 | . . 1 Subdweller 7 | . . 7 Best Kill Streak 7 | 2 7 5 Combat Bots Only 5 | . 5 5 Max Kills in Single Turn 5 | 1 2 5 Gunslinging . | . . . Exploded 5 | . . 5 Melee . | . . . Uniques/NPCs Destroyed . | . . . Combat | -11 -10 -10 -------- Run | Yrd Mat Sub Hostile Shots Fired 236 | . 55 181 Missed 59 | . 14 45 Hits 177 | . 41 136 Projectile 177 | . 41 136 Critical Strikes 3 | . . 3 Damage Taken 2071 | . 339 1732 Core 308 | . 48 260 Absorbed by Shields . | . . . Core Remaining (%) 100 | 100 . . Volleys Fired 123 | 5 34 84 Largest 3 | 2 2 3 Hottest 135 | 40 70 135 Shots Fired 214 | 10 68 136 Gun 142 | 10 68 64 Cannon 70 | . . 70 Launcher 2 | . . 2 Special . | . . . Kinetic 141 | 10 34 97 Thermal 73 | . 34 39 Explosive . | . . . Electromagnetic . | . . . Robot Hit Streak 14 | 2 11 14 Robot Miss Streak 9 | 3 9 4 Penetration Max . | . . . Secondary Targets 1 | . . 1 Max Gunslinging Chain 1 | . . 1 Shots Hit Robots 117 | 4 40 73 Core Hits 55 | 3 24 28 Critical Kills 2 | . . 2 Critical Parts Destroyed . | . . . Critical Strikes 4 | . 1 3 Burn 1 | . 1 . Meltdown 1 | . . 1 Destroy 1 | . . 1 Blast 1 | . . 1 Melee Attacks . | . . . Impact . | . . . Slashing . | . . . Piercing . | . . . Sneak Attacks . | . . . Combat Hostiles . | . . . Follow-up Attacks . | . . . Damage Inflicted 2625 | 80 586 1959 Guns 1397 | 80 562 755 Cannons 624 | . . 624 Explosions 576 | . . 576 Melee . | . . . Ramming 28 | . 24 4 Kinetic 1741 | 80 312 1349 Thermal 856 | . 250 606 Explosive . | . . . Electromagnetic . | . . . Impact . | . . . Slashing . | . . . Piercing . | . . . Highest Corruption 24 | . . 24 Average Corruption 10 | . . 10 Corruption Purged . | . . . Corruption Blocked . | . . . Effects 31 | . . 31 Message Errors 8 | . . 8 Matter Fused 9 | . . 9 Heat Flow Errors 5 | . . 5 Energy Discharges 3 | . . 3 Data Loss (minor) 4 | . . 4 Misfires 1 | . . 1 Misdirections 1 | . . 1 Overload Shots . | . . . Overflow Damage 15 | . . 15 Projectiles 8 | . . 8 Explosions 7 | . . 7 Melee . | . . . Knockbacks 2 | . . 2 Impact . | . . . Kinetic 1 | . . 1 Secondary 1 | . . 1 Self-Inflicted Damage 36 | . . 36 Shots 1 | . . 1 Rammed 13 | . 11 2 Targets Rammed 14 | . 12 2 Kicked . | . . . Crushed 1 | . 1 . Highest Temperature 441 | . 126 441 Average Temperature 89 | . 37 160 Received Heat Transfer 842 | . 30 812 Effects 3 | . . 3 Shutdowns 1 | . . 1 Interference 2 | . . 2 Siege Activations . | . . . Martial Activations . | . . . Shielding Activations . | . . . Robots Disrupted . | . . . Combat Hostiles . | . . . Robots Corrupted . | . . . Combat Hostiles . | . . . Parts Fried . | . . . Impact Corruptions . | . . . Robots Melted 1 | . . 1 Combat Hostiles 1 | . . 1 Parts Melted 1 | . . 1 Heat Transferred 1630 | . 814 816 Parts Sabotaged . | . . . Parts Stolen . | . . . Parts Stripped . | . . . Power Chain Reactions . | . . . Alert | -11 -10 -10 ------- Run | Yrd Mat Sub Maximum Alert Level . | . . . Low Security (%) 100 | 100 100 . Level 1 . | . . . Level 2 . | . . . Level 3 . | . . . Level 4 . | . . . Level 5 . | . . . High Security . | . . . Max Security . | . . . Peak Influence 124 | 10 124 . Initial . | . . . Average 30 | . 33 . Influence Increases 677 | 10 326 341 Destroy 0b10 Robot/C 540 | . 240 300 Destroy 0b10 Robot/NC 30 | 10 20 . Destroy Leader 52 | . 42 10 Allied During Kill 1 | . . 1 Successful Hack 8 | . 8 . Destroy Structure 1 | . 1 . Lose Combat Pursuer 45 | . 15 30 Influence Decreases 510 | 10 273 227 Entered New Map 26 | . . 26 Time Decay 404 | 10 273 121 Lost Part 80 | . . 80 Squads Dispatched 2 | . 2 . Investigation 1 | . 1 . Extermination . | . . . Reinforcement 1 | . 1 . Assault . | . . . Garrison . | . . . Intercept . | . . . Searches Triggered . | . . . Construction Impeded . | . . . Haulers Reinforced . | . . . Active Scanning Responses . | . . . Cargo Convoy Interrupts . | . . . Stealth | -11 -10 -10 --------- Run | Yrd Mat Sub Distress Signals 3 | . 3 . Communications Jammed . | . . . Distress Signals . | . . . Times Spotted 59 | . 22 37 Peak Tracking Total 6 | . 6 6 Tactical Retreats 3 | . 1 2 Traps | -11 -10 -10 ------- Run | Yrd Mat Sub Traps Triggered 1 | . 1 . Indirectly . | . . . Trap Hack Attempts . | . . . Triggered . | . . . Disarmed . | . . . Reprogrammed . | . . . Reused . | . . . Traps Extracted . | . . . Installed . | . . . Triggered . | . . . Machines | -11 -10 -10 ---------- Run | Yrd Mat Sub Machines Disabled 2 | . . 2 Max in Single Turn 1 | . . 1 Machines Repaired . | . . . Machines Dismantled . | . . . Machines Sabotaged . | . . . Overloaded Fab Kills . | . . . Hacking | -11 -10 -10 --------- Run | Yrd Mat Sub Machines Accessed 5 | . 5 . Terminals 5 | . 5 . Fabricators . | . . . Repair Stations . | . . . Recycling Units . | . . . Scanalyzers . | . . . Garrison Access . | . . . Total Hacks 13 | . 13 . Successful 4 | . 4 . Failed 9 | . 9 . Catastrophic . | . . . Database Lockouts . | . . . Manual 14 | . 14 . Terminals 13 | . 13 . Fabricators . | . . . Repair Stations . | . . . Recycling Units . | . . . Scanalyzers . | . . . Garrison Access . | . . . Terminal Hacks . | . . . Fabricator Hacks . | . . . Repair Station Hacks . | . . . Recycling Unit Hacks . | . . . Scanalyzer . | . . . Garrison Access Hacks . | . . . Unauthorized Hacks 4 | . 4 . Terminals 4 | . 4 . Skim 4 | . 4 . Fabricators . | . . . Repair Stations . | . . . Recycling Units . | . . . Scanalyzers . | . . . Garrison Access . | . . . Data Cores Recovered . | . . . Used . | . . . Hacking Detections 4 | . 4 . Full Trace Events . | . . . Feedback Events . | . . . Feedback Blocked . | . . . Robot Schematics Acquired . | . . . Robots Built . | . . . Authchips . | . . . Time . | . . . Total Robot Build Rating . | . . . Part Schematics Acquired . | . . . Parts Built . | . . . Authchips . | . . . Time . | . . . Total Part Build Rating . | . . . Part Studies Acquired . | . . . Parts Repaired . | . . . Time . | . . . Parts Recycled . | . . . Recycled Matter . | . . . Retrieved Matter . | . . . Retrieved Components . | . . . Parts Scanalyzed . | . . . Part Schematics Acquired . | . . . Parts Damaged . | . . . Bothacking | -11 -10 -10 ------------ Run | Yrd Mat Sub Used RIF Installer . | . . . Robots Hacked . | . . . Non-combat . | . . . Combat . | . . . Robot Hacks Applied . | . . . Relay Couplers Released . | . . . Fabnet Peak Effective % . | . . . Robots Rewired . | . . . Allies Hacked . | . . . Hacks Repelled . | . . . Allies | -11 -10 -10 -------- Run | Yrd Mat Sub Total Allies 2 | . . 2 Largest Group 1 | . . 1 Highest-Rated Group 90 | . . 90 Highest-Rated Ally 90 | . . 90 Total Orders . | . . . Ally Attacks 7 | . . 7 Total Damage 359 | . . 359 Kills 2 | . . 2 Allies Corrupted . | . . . Allies Melted . | . . . X0-1V1 Amusement Gains 26 | . 16 10 Average Entertainment 7 | . 16 7 Good Acts 25 | . . 25 Bad Acts 42 | . . 42 Intel | -11 -10 -10 ------- Run | Yrd Mat Sub Active Infowar (turns) 2698 | 12 942 1744 Seismic 2698 | 12 942 1744 Robot Analysis Total . | . . . Derelict Logs Recovered 2 | . . 2 Drone Launches . | . . . Drone Recoveries . | . . . Exploration | -11 -10 -10 ------------- Run | Yrd Mat Sub Turns Passed 4472 | 120 1240 3112 Spaces Moved 1948 | 62 494 1392 Core 10 | 10 . . Treads 1353 | 52 494 807 Legs . | . . . Wheels 585 | . . 585 Hover . | . . . Flight . | . . . Fastest Speed 50 | 50 160 107 Average Speed 201 | 142 217 199 Slowest Speed 320 | 160 240 320 Overloaded Moves . | . . . Propulsion Burnouts . | . . . Robots Hopped . | . . . Potential Cave-ins . | . . . Cave-ins Triggered . | . . . Exploration Rate (%) 51 | 4 82 67 Regions Visited 2 Branch Regions 1 Pre-discovered Areas . | . . . Known Exits Taken . | . . . Unknown Exits Taken 2 | 1 1 . Scrap Searched 1 | . . 1 Spaces Dug 5 | . . 5 Terrain Destroyed 39 | . . 39 Melee . | . . . Projectile 7 | . . 7 AOE 32 | . . 32 Terrain Rammed . | . . . Walls Destroyed . | . . . Machines Disabled . | . . . Actions | -11 -10 -10 --------- Run | Yrd Mat Sub Total 2248 | 85 576 1587 Wait 66 | . 23 43 Move 1946 | 61 493 1392 Hop . | . . . Pick Up 45 | 12 10 23 Fast Attach . | . . . Attach 22 | 7 . 15 Detach 1 | . . 1 Swap 21 | . 3 18 Drop 9 | . 1 8 Fire 123 | 5 34 84 Melee . | . . . Ram 1 | . . 1 Kick . | . . . Crush 13 | . 12 1 Escape Stasis . | . . . Rewire 1 | . . 1 Trap . | . . . Miscellaneous . | . . . Route ------- -11/Scrapyard -10/Materials (discovered 4 exits: [*Mat] / [*Min x2] / [*Sub]) -10/Subcaves (discovered 3 exits: *Mat x2 / *Rec) History --------- Turn | Location | Event 18 | -11/Scrapyard | Discovered new exit (range 16) 121 | -11/Scrapyard | Entered Materials 303 | -10/Materials | Build established: Mutant 341 | -10/Materials | Discovered new exit (range 11) 352 | -10/Materials | Discovered new exit (range 10) 715 | -10/Materials | Discovered new exit (range 10) 1338 | -10/Materials | Discovered new exit (range 7) 1352 | -10/Materials | Prayed at D.C.S.S. Altar Unit 1361 | -10/Materials | Entered Subcaves 1362 | -10/Subcaves | Approached by a straggling Scientist 1609 | -10/Subcaves | X0-1V1 caused items to flee you 1859 | -10/Subcaves | Items stopped fleeing you 1875 | -10/Subcaves | Learned location of 1 exit from Materials 2198 | -10/Subcaves | Core integrity restored by X0-1V1 (+37) 2201 | -10/Subcaves | Build established: Scavenger-Mutant 2247 | -10/Subcaves | Shifting Twisted Machinery released Sub. Power Source 2279 | -10/Subcaves | Shifting Twisted Machinery released Sub. Shrapnel Launcher 2369 | -10/Subcaves | X0-1V1 sent allied H-61 Shepherd (x1) 2462 | -10/Subcaves | Ranged accuracy permanently improved by X0-1V1 (+5%; -50 max core) 2673 | -10/Subcaves | Build established: Mutant 3087 | -10/Subcaves | Identified exit to Recycling 3087 | -10/Subcaves | X0-1V1 revealed exit location to -8/Recycling 3098 | -10/Subcaves | System corruption reached 10% 3126 | -10/Subcaves | X0-1V1 activates XOMVISION 3207 | -10/Subcaves | Identified exit to Materials 3207 | -10/Subcaves | X0-1V1 revealed exit location to -8/Materials 3269 | -10/Subcaves | Shifting Twisted Machinery released Sub. Power Source 3274 | -10/Subcaves | Shifting Twisted Machinery released Battle Cannon 3324 | -10/Subcaves | X0-1V1 revealed exit location to -8/Materials 3368 | -10/Subcaves | X0-1V1 sent hostile G-34 Mercenary (x6) 3511 | -10/Subcaves | Shifting Twisted Machinery released Flamer 3512 | -10/Subcaves | Shifting Twisted Machinery released Sub. Monowheel 3523 | -10/Subcaves | A swath of the cavern ceiling suddenly collapsed 3719 | -10/Subcaves | X0-1V1 sent hostile G-34 Mercenary (x3) 3737 | -10/Subcaves | X0-1V1 sent allied H-61 Shepherd (x1) 3746 | -10/Subcaves | Core integrity fell below 50% 3767 | -10/Subcaves | Core integrity restored by X0-1V1 (+30) 3768 | -10/Subcaves | X0-1V1 rewrote H-61 Shepherd IFF filter 4200 | -10/Subcaves | Weapon slot count temporarily expanded by X0-1V1 (+1) 4432 | -10/Subcaves | X0-1V1 sent hostile S-10 Pest (x5) 4451 | -10/Subcaves | X0-1V1 sent you into danger 4454 | -10/Subcaves | X0-1V1 upgraded hostiles (x3) 4462 | -10/Subcaves | Core integrity fell below 20% 4473 | -10/Subcaves | Destroyed by S-27 Virus with Autogun Last Messages --------------- Sub. Beam Cannon temporarily disabled. Lgt. Ion Engine destroyed. Acquired 11 matter. S-27 Virus destroyed. Sub. Monowheel destroyed. Flight Unit fries itself beyond repair. X0-1V1: "The ol' switcheroo!" Form resolidifies at new position. S-27 Virus form resolidifies at new position. GJ-0IR(R) form resolidifies at new position. 60-5TY(R) form resolidifies at new position. 1E-G17(R) form resolidifies at new position. X0-1V1: "I know that drunk sailor look when I see it." Machine disabled. Lgt. Ion Engine fries itself beyond repair. Sub. Beam Cannon destroyed. Attempting to rewire 1E-G17(R). 1E-G17(R) is broken beyond repair. X0-1V1: "Boring in life, boring in death..." Map ----- +----------------------------------------------------+ | ??????????????????????#####?#????????????????????? | | ?????????????##??????? # #????????????????????? | | ????????????# #??####? #????????????????????? | | ???????????# #?## ## ###??????????????????? | | ?????????## ?## ????????????????? | | ?????????# ??# ????????????????? | | ????????## #??# ## ????????????????? | | ???????## #### ##????????????????????????? | | ???????# ## ####?????????????????????????? | | ???????## ### #????????????????????????????? | | ?###????## ## #????????????????????????????? | | ## ###"#"## ##???????????????????????????? | | # ##" " " ##??????????????????????????? | | # ## [ #??????????????????????????? | | %= % ## #?????????????????????????? | | =" ""# ##? ???????????????????????? | | """ #####?? ???????????????????????? | | ###### "" ?????????####????????????????????????? | | #????## ##?????????????????????????????????????? | | #####?## #?######???????????????????????????????? | | ##?# ### #??????########?????????????????? | | ##?#### ##??????#"" R #?????????????????? | | ##### ##???????#" % #?????????????????? | | ##???????#"R #####?????????????? | | ####??###"s ??????????? | | ## ## #>@ ??????????? | | ### ## ##" R ??????????? | | ##?# ##### ##" ;######???????????? | | ##??# #### ##" ##????????????????? | | ##??## ## ###" " "#?????????????????? | | ##??### ######?########?????????????????? | | #???## ##???????????????????????????????? | | ##### #????????????????????????????????? | | ## #????????????????????????????????? | | # #### #????????????????????????????????? | | # ##??# #??????????????????????????????? | | # ##???## ##??????????????????????????????? | | # ### ##?????####???????????????????????????????? | | ##??####?????????????????????????????????????????? | | ?????????????????????????????????????????????????? | | ?????????????????????????????????????????????????? | | ?????????????????????????????????????????????????? | | ?????????????????????????????????????????????????? | | ?????????????????????????????????????????????????? | | ?????????????????????????????????????????????????? | | ?????????????????????????????????????????????????? | | ?????????????????????????????????????????????????? | | ?????????????????????????????????????????????????? | | ?????????????????????????????????????????????????? | | ?????????????????????????????????????????????????? | +----------------------------------------------------+ Best States ------------- Heat Dissipation 25 Energy Generation 10 Energy Capacity 1450 Matter Stores 339 Matter Capacity 700 Sight Range 19 Terrain Scan Density 10 Armor Coverage 150 Evasion (%) 50 Recoil Reduction 2 Item Schematics ----------------- None Robot Schematics ------------------ None Fabricated ------------ Nothing Repaired ---------- Nothing Studied --------- None Alien Tech Used ----------------- None Achievements -------------- None Challenges ------------ None Game ------ Seed WaveSapperEngine Manual? 0 Play Time 00:23:30 Cumulative 595.7 hours Start 2026.08.31 @ 13:57:24 End 2026.08.31 @ 14:22:12 Sessions 1 Manual Loads 0 Difficulty Rogue Special Mode None Game No. 336 Rogue 336 Adventurer 0 Explorer 0 Win Type - Total 40 Types 20/2/8/2/1/1/1/2/1/2 Lore% 97 Gallery% 93 Achievement% 88 Wizard Run 0 Options --------- Layout 1 ASCII 0 Keyboard 0 Movement Numpad Keybinds 0 Fullscreen 1 Font 24/Proggy Map View 50x35 Zoom Use 0% Tactical HUD 0 Map Filters NONE Filters NONE Steam 1 RUN: 62b25a66-55f6-4def-9869-77cb9cce2753